[Event "44th Chess Olympiad Women 2022"]
[Site "Chennai"]
[Date "2022.07.30"]
[Round "2.3"]
[White "Simkunaite, Gabija"]
[Black "Arabidze, Meri"]
[Result "1-0"]
[WhiteElo "2010"]
[BlackElo "2426"]
[Annotator "TA"]
[PlyCount "129"]
[EventDate "2022.??.??"]
[TimeControl "60"]

{[%evp 9,129,10,14,18,12,8,3,-9,25,33,35,29,28,35,22,27,71,21,37,5,18,18,19,16,
17,31,28,23,36,18,35,6,22,29,26,23,19,31,408,405,402,402,480,322,322,322,287,
287,323,323,321,306,310,234,434,427,574,574,575,563,609,606,579,541,631,622,
614,596,588,583,570,569,502,461,534,560,526,547,597,567,468,339,364,384,384,
384,288,349,306,250,279,36,799,667,998,912,950,923,745,584,543,463,437,377,
1228,1649,29973,4437,29968,29969,29989,10247,29979,29980,29988,29989,29989,
29990,29994,29995,29995,29996]} 1. e4 {[%emt 0:00:11]} c5 {[%emt 0:00:08]} 2.
Nf3 {[%emt 0:00:18]} e6 {[%emt 0:00:23]} 3. g3 {[%emt 0:00:27]} Nc6 {[%emt 0:
00:00]} 4. Bg2 {[%emt 0:00:21]} Nf6 {[%emt 0:00:06]} 5. Qe2 {[%emt 0:00:09]} e5
{[%emt 0:00:24]} 6. O-O {[%emt 0:08:00] B40: Sicilian: 2...e6, Unusual lines.}
Be7 {[%emt 0:00:23]} 7. c3 {[%emt 0:02:43][%cal Yd2d4]} O-O {[%emt 0:00:26]} 8.
Rd1 {[%emt 0:05:51] The position is equal.} d6 {[%emt 0:04:40]} 9. d4 {[%emt 0:
00:00]} cxd4 {[%emt 0:04:01]} ({Resist} 9... Bg4 10. dxc5 Qc7 11. cxd6 Bxd6 12.
Bg5 $16) 10. cxd4 {[%emt 0:00:30]} Bg4 {[%emt 0:00:28] Hoping for ...Nxd4.} 11.
dxe5 {[%emt 0:06:49]} Nxe5 {[%emt 0:00:41]} 12. Nc3 {[%emt 0:05:16] [#]} Qa5
$146 {[%emt 0:09:31]} ({Predecessor:} 12... Rc8 13. Bf4 Qa5 14. h3 Nxf3+ 15.
Bxf3 Bxh3 16. Bxd6 Bxd6 17. Rxd6 Rfe8 18. Rad1 a6 {1-0 (36) Bachmann,A (2632)
-Aguiar Cunha,L (2390) Chess.com INT 2016}) 13. Bf4 {[%emt 0:25:55]} ({Better
is} 13. h3 $16 Nxf3+ 14. Bxf3 Bxf3 15. Qxf3) 13... Rfe8 {[%emt 0:05:53]} 14.
Nd5 {[%emt 0:05:17]} Rac8 {[%emt 0:15:45]} 15. h3 {[%emt 0:08:59]} Nxd5 {
[%emt 0:17:58]} (15... Bxf3 {seems wilder.} 16. Bxf3 Nxd5 17. Rxd5 Nxf3+ 18.
Qxf3 Qb4) 16. Rxd5 {[%emt 0:01:50]} Bxf3 {[%emt 0:00:49]} (16... Nxf3+ {
is more complex.} 17. Kh1 Rc5 18. hxg4 Rxd5 19. exd5 Ne5) 17. Bxf3 {[%emt 0:00:
00]} (17. Rxa5 $2 {loses.} Bxe2 18. Rxa7 Ba6 $19) 17... Nxf3+ {[%emt 0:02:27]}
18. Qxf3 {[%emt 0:00:07]} Qb4 {[%emt 0:00:39]} 19. Rd2 {[%emt 0:07:58]} Bf6 {
[%emt 0:01:58][%csl Yb2,Ye4]} 20. Rad1 {[%emt 0:02:20]} Bxb2 {[%emt 0:15:18]}
21. Bxd6 {[%emt 0:01:18]} Qc3 {[%emt 0:00:16]} 22. Qg4 {[%emt 0:01:51]} Bc1 {
[%emt 0:04:30]} 23. Rd5 {[%emt 0:01:21][%cal Yd6e5] Black must now prevent Be5!
} Qf6 {[%emt 0:05:23] [#] Inhibits Be5.} ({Black should play} 23... Qc2 $14)
24. Be5 $1 $18 {[%emt 0:00:21]} Qg5 {[%emt 0:01:48]} 25. Qd7 {[%emt 0:04:10]}
f5 {[%emt 0:05:46]} 26. Qxb7 {[%emt 0:02:22][%cal Yd5d7] Intending Rd7! and
mate.} Qe7 {[%emt 0:02:12]} 27. Qxe7 {[%emt 0:01:26]} Rxe7 {[%emt 0:00:01]} 28.
exf5 {[%emt 0:00:18]} Ba3 {[%emt 0:01:30]} 29. f6 {[%emt 0:00:00]} gxf6 {
[%emt 0:00:20]} 30. Bxf6 {[%emt 0:00:01]} Rec7 {[%emt 0:00:44]} 31. Rd7 {
[%emt 0:01:03]} Rxd7 $2 {[%emt 0:00:35]} (31... a5 {was called for.} 32. Bd8
Rxd7 33. Rxd7 Rc1+ 34. Kg2 a4) 32. Rxd7 {[%emt 0:00:01] Endgame KRB-KRB} Rc1+ {
[%emt 0:00:19]} 33. Kg2 {[%emt 0:00:30]} Rc2 {[%emt 0:00:00]} 34. Bd4 {[%emt 0:
01:17]} a5 {[%emt 0:00:21]} 35. Rg7+ {[%emt 0:00:09]} Kf8 {[%emt 0:00:08]} 36.
Rxh7 {[%emt 0:00:09]} Rxa2 {[%emt 0:00:19]} 37. Rc7 {[%emt 0:00:15]} Ke8 {
[%emt 0:01:17]} 38. Bc5 {[%emt 0:01:26] Prevents Be7.} Bc1 {[%emt 0:00:58]} 39.
Re7+ {[%emt 0:00:46]} Kd8 {[%emt 0:00:06]} 40. Re1 {[%emt 0:00:12]} Bh6 {
[%emt 0:00:46]} 41. Bd4 {[%emt 0:01:51]} a4 {[%emt 0:00:00]} 42. g4 {[%emt 0:
02:24]} Bg5 {[%emt 0:02:11]} 43. Kg3 {[%emt 0:01:43]} Ra3+ {[%emt 0:03:49]} 44.
f3 {[%emt 0:01:13]} Rd3 {[%emt 0:00:20]} 45. Bb6+ {[%emt 0:01:59]} Kd7 {
[%emt 0:01:56]} 46. h4 {[%emt 0:04:24]} Bf6 {[%emt 0:00:00] aiming for ...a3.}
47. g5 {[%emt 0:01:30]} Bb2 {[%emt 0:02:33]} 48. Bc5 {[%emt 0:02:35]} a3 {
[%emt 0:03:29] [#]} 49. Bxa3 {[%emt 0:02:52]} Rxa3 {[%emt 0:01:15] KRB-KR} (
49... Bxa3 50. h5) 50. h5 $2 {[%emt 0:01:26]} (50. Re4 $18) 50... Ra8 $2 {
[%emt 0:07:00]} (50... Ra1 $14 51. Rxa1 Bxa1) 51. f4 {[%emt 0:01:32]} Re8 {
[%emt 0:01:17]} 52. Rb1 {[%emt 0:00:19]} ({Inferior is} 52. Rxe8 Kxe8 53. h6
Kf7 $11) 52... Re2 {[%emt 0:01:49]} 53. Kf3 {[%emt 0:01:58]} Rh2 {[%emt 0:01:
12]} 54. Kg4 {[%emt 0:00:37]} Ke6 {[%emt 0:00:00]} 55. Re1+ {[%emt 0:00:18]}
Kf7 {[%emt 0:00:18]} 56. h6 {[%emt 0:00:41]} Ba3 $2 {[%emt 0:02:28]} (56...
Rg2+ 57. Kf5 Rd2) 57. Kf5 {[%emt 0:01:37] Strongly threatening g6+.} Bf8 {
[%emt 0:01:11]} 58. Re6 {[%emt 0:01:05]} (58. g6+ $142 Kg8 59. h7+ Kg7 60. Re8
Rh5+ 61. Kg4 Rh6 62. f5 Rh1 {[#]} 63. Rxf8 $1 Kxf8 64. f6 Rg1+ 65. Kf4) 58...
Rh4 {[%emt 0:01:01]} 59. Ra6 {[%emt 0:00:00]} Kg8 {[%emt 0:00:25]} 60. Rc6 {
[%emt 0:02:16]} (60. Ra8 $142 Kf7 61. g6+ Ke7 62. g7 Rh5+ 63. Ke4 Bxg7 64. hxg7
Kd6 65. g8=Q) 60... Kf7 {[%emt 0:00:36]} 61. Rc7+ {[%emt 0:00:27] White mates.}
Kg8 {[%emt 0:00:22]} 62. Rc8 {[%emt 0:00:00]} Kf7 {[%emt 0:00:37]} 63. g6+ {
[%emt 0:00:46][%cal Yg5g6,Yg6g7]} Kg8 {[%emt 0:00:31]} 64. g7 {[%emt 0:00:08]
Pin} Kh7 {[%emt 0:00:26]} 65. Rxf8 {[%emt 0:01:01] Weighted Error Value:
White=0.14 (very precise) / Black=0.44} 1-0

[Event "44th Chess Olympiad Women 2022"]
[Site "Chennai"]
[Date "2022.07.30"]
[Round "2.4"]
[White "Kiolbasa, Oliwia"]
[Black "Berke, Ana"]
[Result "1-0"]
[WhiteElo "2376"]
[BlackElo "2163"]
[Annotator "TA"]
[PlyCount "91"]
[EventDate "2022.??.??"]
[TimeControl "60"]

{[%evp 22,91,67,67,75,72,64,83,99,88,108,104,110,105,97,97,114,88,108,111,151,
131,140,134,154,135,172,164,281,272,305,304,305,306,347,279,397,336,523,336,
495,513,655,645,670,656,854,857,1539,1558,1504,1453,1370,1252,1446,1434,29976,
29977,29983,29984,29974,2303,2731,2465,29992,29991,29991,29985,29985,29986,
29984,29985]} 1. e4 {[%emt 0:00:04]} c5 {[%emt 0:00:13]} 2. Nf3 {[%emt 0:00:09]
} d6 {[%emt 0:00:07]} 3. d4 {[%emt 0:00:10]} cxd4 {[%emt 0:00:06]} 4. Nxd4 {
[%emt 0:00:07]} Nf6 {[%emt 0:00:05]} 5. Nc3 {[%emt 0:00:10]} Nc6 {[%emt 0:00:
00]} 6. Bg5 {[%emt 0:00:42]} Bd7 {[%emt 0:00:11]} 7. Qd2 {[%emt 0:00:59]} Rc8 {
[%emt 0:00:22]} 8. O-O-O {[%emt 0:01:01]} Nxd4 {[%emt 0:00:17]} 9. Qxd4 {
[%emt 0:00:08]} Qa5 {[%emt 0:00:16]} 10. f4 {[%emt 0:00:45][%cal Yf2f4,Yf4g5]}
Rxc3 {[%emt 0:01:30]} 11. bxc3 {[%emt 0:00:31]} e5 {[%emt 0:00:32]} 12. Qb4 $1
{[%emt 0:00:37]} Qxb4 {[%emt 0:00:26] B61: Sicilian: Richter-Rauzer: 6...Bd7 7
Qd2.} 13. cxb4 {[%emt 0:00:09]} Nxe4 {[%emt 0:00:08]} 14. Bh4 {[%emt 0:00:15]
Inhibits Nf2.} g5 {[%emt 0:05:27] White is better.} 15. fxg5 {[%emt 0:00:12]} (
{Don't play} 15. Bxg5 $6 Nf2 16. Bd3 Nxh1 17. Rxh1 Be7 $11) 15... Be7 {[%emt 0:
04:41] [#]} 16. Bc4 $1 {[%emt 0:05:26]} Be6 {[%emt 0:06:44]} 17. Bxe6 {[%emt 0:
21:00]} fxe6 {[%emt 0:00:07]} 18. Kb2 {[%emt 0:13:21]} h6 {[%emt 0:06:25] [#]}
19. c4 $146 {[%emt 0:04:33]} ({Predecessor:} 19. Rdf1 hxg5 20. Be1 d5 21. Rf3
g4 22. Ra3 a6 23. Rb3 Nd6 24. Rg3 Nc4+ 25. Kb3 {½-½ (62) Karamshoev,S (2062)
-Yunusov,M (1685) Dushanbe 2015}) 19... hxg5 {[%emt 0:01:28]} 20. Bg3 {[%emt 0:
00:36]} Bf6 {[%emt 0:04:09]} 21. Rhe1 {[%emt 0:06:40]} Nxg3 {[%emt 0:01:37]}
22. hxg3 $16 {[%emt 0:00:06] Endgame KRR-KRB} Ke7 {[%emt 0:14:14]} 23. Rh1 {
[%emt 0:04:10]} Rg8 {[%emt 0:03:26]} 24. Rh7+ {[%emt 0:03:26]} Bg7 {[%emt 0:00:
15]} (24... Rg7 {might work better.} 25. Rh8 e4+ 26. Kb3 Kd7) 25. a4 {[%emt 0:
01:02]} b6 {[%emt 0:02:57]} 26. a5 {[%emt 0:00:00]} bxa5 {[%emt 0:03:48]} 27.
bxa5 {[%emt 0:00:11]} Kd7 {[%emt 0:02:36]} 28. Kc2 {[%emt 0:04:02] aiming for
a6.} Ke7 {[%emt 0:14:13]} (28... e4 {was necessary.} 29. Rf1 Ke8) 29. a6 $18 {
[%emt 0:04:03]} e4 {[%emt 0:01:30]} (29... d5 {was worth a try.} 30. cxd5 Kf6)
30. g4 {[%emt 0:05:59] And now Rf1 would win.} e3 {[%emt 0:11:05]} (30... d5 {
is a better defense.} 31. cxd5 Kd6 32. dxe6+ Kxe6) 31. Rd3 {[%emt 0:09:40]} Kf6
{[%emt 0:07:55]} 32. Rxd6 {[%emt 0:00:59]} ({Less strong is} 32. Rxe3 Rc8 $16)
32... Bf8 {[%emt 0:02:51]} 33. Rc6 {[%emt 0:01:55]} Bb4 {[%emt 0:02:11]} 34.
Kd3 {[%emt 0:00:44]} Bd2 {[%emt 0:02:27]} 35. Rxa7 {[%emt 0:02:53]} Rd8+ {
[%emt 0:01:02]} 36. Ke2 {[%emt 0:00:05]} Bc1 {[%emt 0:00:10]} 37. Rac7 {
[%emt 0:01:33]} Ke5 {[%emt 0:00:00]} 38. a7 {[%emt 0:01:00]} Rf8 {[%emt 0:01:
58] [#]} 39. Rf7 $3 {[%emt 0:00:00]} Rxf7 {[%emt 0:00:40]} (39... Rd8 40. Re7)
40. a8=Q {[%emt 0:00:00]} Rf2+ {[%emt 0:00:22]} 41. Kd3 {[%emt 0:10:46]} (41.
Kd1 $142 Bb2 42. Qb8+ Kf6 43. Qd8+ Kg6 44. Qe8+ Rf7 45. Rc7 Kf6 46. Rxf7+ Ke5
47. Kc2) 41... Rd2+ {[%emt 0:01:03]} 42. Kc3 {[%emt 0:00:45] White wants to
mate with Qb8+.} e2 {[%emt 0:00:48]} 43. Qh8+ {[%emt 0:01:02] White mates.} Kf4
{[%emt 0:01:11]} 44. Qf6+ {[%emt 0:00:33]} Kg3 {[%emt 0:00:25]} 45. Qf3+ {
[%emt 0:01:17]} Kh2 {[%emt 0:00:11]} 46. Rxe6 {[%emt 0:00:55] Weighted Error
Value: White=0.11 (very precise) /Black=0.79} 1-0

[Event "44th Chess Olympiad Women 2022"]
[Site "Chennai"]
[Date "2022.07.30"]
[Round "2.4"]
[White "Medic, Mirjana"]
[Black "Kashlinskaya, Alina"]
[Result "1/2-1/2"]
[WhiteElo "2194"]
[BlackElo "2505"]
[Annotator "TA"]
[PlyCount "85"]
[EventDate "2022.??.??"]
[TimeControl "60"]

{[%evp 20,85,21,0,18,-22,0,-1,0,-24,13,0,0,6,10,-8,-23,-22,-10,-17,-12,-15,10,
2,18,7,35,0,0,0,20,0,41,0,0,0,0,0,0,-95,0,0,0,0,0,0,8,0,20,6,33,0,9,10,21,0,0,
0,0,0,0,0,0,0,5,0,12,12]} 1. d4 {[%emt 0:00:03]} Nf6 {[%emt 0:00:07]} 2. Nf3 {
[%emt 0:00:14]} g6 {[%emt 0:00:11]} 3. c4 {[%emt 0:00:19]} Bg7 {[%emt 0:00:11]}
4. g3 {[%emt 0:00:07]} O-O {[%emt 0:00:12]} 5. Bg2 {[%emt 0:00:13]} d6 {
[%emt 0:00:16]} 6. O-O {[%emt 0:00:22]} Nc6 {[%emt 0:00:12]} 7. Nc3 {[%emt 0:
00:00]} e5 {[%emt 0:00:13]} 8. d5 {[%emt 0:00:43]} Nb8 {[%emt 0:00:12]} 9. h3 {
[%emt 0:01:44]} a5 {[%emt 0:00:40]} 10. e4 {[%emt 0:01:00]} Na6 {[%emt 0:00:13]
} 11. Be3 {[%emt 0:01:30]} Nd7 {[%emt 0:01:46] E62: King's Indian: Fianchetto:
6...c6 and Panno Variation (6...Nc6) without ...a6.} 12. Ne1 {[%emt 0:13:06]}
Nac5 {[%emt 0:00:29]} 13. Nd3 {[%emt 0:04:29]} b6 {[%emt 0:16:11]} 14. Nxc5 {
[%emt 0:03:20] [#]} bxc5 $146 {[%emt 0:00:59]} ({Predecessor:} 14... Nxc5 15.
a3 f5 16. f3 f4 17. Bxc5 bxc5 18. g4 h5 19. Kf2 Qh4+ 20. Ke2 Qg3 {½-½ (50)
Kulagina,S (2068)-Kirik,I (2146) Minsk 2003}) 15. Rc1 {[%emt 0:01:52]} f5 {
[%emt 0:02:05]} 16. exf5 {[%emt 0:02:25]} gxf5 {[%emt 0:00:11]} 17. f4 {
[%emt 0:00:30]} exf4 {[%emt 0:13:07]} 18. Bxf4 {[%emt 0:00:20]} Ne5 {[%emt 0:
00:00]} 19. b3 {[%emt 0:03:55]} Ng6 {[%emt 0:03:22]} 20. Bd2 {[%emt 0:08:06]}
Bd7 {[%emt 0:05:09][%cal Ya5a4]} (20... a4 $5) 21. a4 {[%emt 0:01:51]} Kh8 {
[%emt 0:15:00][%cal Yf5f4]} 22. Ne2 {[%emt 0:03:44] Inhibits f4.} Rg8 {[%emt 0:
00:00]} 23. Nf4 {[%emt 0:03:18]} Nxf4 {[%emt 0:02:31]} 24. Bxf4 {[%emt 0:00:09]
} Rb8 {[%emt 0:03:54]} 25. Kh2 {[%emt 0:04:30]} Qf6 {[%emt 0:02:11]} 26. Re1 {
[%emt 0:04:30]} Bh6 {[%emt 0:02:22]} 27. Bxh6 {[%emt 0:01:57]} Qxh6 {[%emt 0:
00:00]} 28. Qf3 {[%emt 0:00:27] Prevents f4.} Rg7 {[%emt 0:04:05] ...Rbg8 is
the strong threat.} 29. Qe3 {[%emt 0:05:16]} (29. Rc2 $11) 29... Qg6 {[%emt 0:
00:00]} ({Better is} 29... f4 $1 $17 {[%cal Rf4e3]} 30. gxf4 Re8) 30. Rc3 $11 {
[%emt 0:01:30]} Qf6 {[%emt 0:01:30][%cal Yf5f4]} 31. Rd3 {[%emt 0:01:45]} Rbg8
{[%emt 0:05:12][%cal Yf5f4] [#] Hoping for ...f4!} 32. Qf4 {[%emt 0:03:02]} Qb2
{[%emt 0:02:41]} 33. Rde3 {[%emt 0:02:03]} Qf6 {[%emt 0:01:33]} 34. R1e2 {
[%emt 0:10:27]} Rg6 {[%emt 0:04:15]} 35. Re7 {[%emt 0:03:51]} R8g7 {[%emt 0:00:
00] The position is equal.} 36. Rxg7 {[%emt 0:00:57]} Rxg7 {[%emt 0:00:47]} 37.
Qd2 {[%emt 0:04:26]} Qg5 {[%emt 0:02:50]} 38. Qxg5 {[%emt 0:02:29] Active
counter play!} Rxg5 {[%emt 0:00:05]} 39. Re3 {[%emt 0:00:07]} Kg8 {[%emt 0:00:
00]} 40. Kg1 {[%emt 0:00:44]} Kf7 {[%emt 0:00:33]} 41. Kf2 {[%emt 0:30:23]} Kf6
{[%emt 0:34:43]} 42. Kf3 {[%emt 0:00:48]} Rg8 {[%emt 0:03:38]} 43. Kf4 {
[%emt 0:01:10] Weighted Error Value: White=0.14 (very precise) /Black=0.12 
(very precise)} 1/2-1/2

[Event "44th Chess Olympiad Women 2022"]
[Site "Chennai"]
[Date "2022.07.30"]
[Round "2.4"]
[White "Rudzinska, Michalina"]
[Black "Ivekovic, Tihana"]
[Result "1-0"]
[WhiteElo "2315"]
[BlackElo "2082"]
[Annotator "TA"]
[PlyCount "87"]
[EventDate "2022.??.??"]
[TimeControl "60"]

{[%evp 11,87,20,24,17,24,22,22,7,8,0,-8,-6,-4,-13,-9,-25,-18,-20,0,4,2,4,3,0,
14,0,0,0,0,-27,-33,-36,-14,-56,-31,-136,-135,-112,-49,-102,-99,-127,-122,-123,
-118,-121,-87,-139,-118,-121,-104,-104,-102,-151,-94,-120,-82,-145,-139,-212,
215,214,185,-269,-218,-227,-138,-153,-21,-267,-257,-234,686,699,914,858,2352,
1573]} 1. e4 {[%emt 0:00:03]} e6 {[%emt 0:00:04]} 2. d4 {[%emt 0:00:09]} d5 {
[%emt 0:00:04]} 3. e5 {[%emt 0:00:10]} c5 {[%emt 0:00:06]} 4. c3 {[%emt 0:00:
00]} Ne7 {[%emt 0:00:10]} 5. Nf3 {[%emt 0:00:28]} Nec6 {[%emt 0:00:09]} 6. Bd3
{[%emt 0:04:48]} b6 {[%emt 0:00:22]} 7. Bg5 {[%emt 0:05:19] C02: French:
Advance Variation.} Be7 {[%emt 0:03:33]} 8. Bxe7 {[%emt 0:04:14]} Qxe7 {
[%emt 0:01:26]} 9. O-O {[%emt 0:00:11] The position is equal.} Ba6 {[%emt 0:00:
00]} 10. Re1 {[%emt 0:03:52]} Bxd3 {[%emt 0:00:07]} 11. Qxd3 {[%emt 0:00:06]}
O-O {[%emt 0:00:30]} 12. Nbd2 {[%emt 0:00:53]} Nd7 {[%emt 0:00:41] [#]} 13. h4
$146 {[%emt 0:03:20]} ({Predecessor:} 13. a3 c4 14. Qc2 b5 15. h4 f6 16. exf6
Qxf6 17. Re2 e5 18. dxe5 Ndxe5 19. Ng5 {0-1 (29) Gundlach,F-Buchenau,F (2240)
Kassel 1993}) 13... Rfc8 {[%emt 0:03:56]} 14. a3 {[%emt 0:01:52]} cxd4 {
[%emt 0:00:30]} 15. cxd4 {[%emt 0:00:13]} Rc7 {[%emt 0:08:10]} 16. Nb1 {
[%emt 0:09:45]} Na5 {[%emt 0:05:55]} 17. Nc3 {[%emt 0:01:28]} a6 {[%emt 0:00:
00] Prevents Nb5.} 18. Rac1 {[%emt 0:01:15][%cal Yc3d5] Threatens to win with
Nxd5!} Qd8 {[%emt 0:15:16]} 19. Ng5 {[%emt 0:03:22]} Nf8 {[%emt 0:00:42]} 20.
f4 {[%emt 0:00:17]} Nc4 {[%emt 0:08:56]} 21. Re2 {[%emt 0:00:29]} Rac8 {
[%emt 0:01:08]} 22. g3 {[%emt 0:10:58]} b5 {[%emt 0:02:38]} 23. Qf3 {[%emt 0:
00:00]} (23. Rec2 $15) 23... h6 $17 {[%emt 0:08:58]} 24. Nh3 {[%emt 0:00:08]}
f5 {[%emt 0:00:09]} (24... Qe7 $17 {[%cal Yc4b2] ...Nxb2! is the strong threat.
} 25. Kh2 Nxb2 $1 26. Nxd5 (26. Rxb2 $2 Qxa3 27. Qg2 Rxc3 $19) 26... exd5 27.
Rxc7 Qxc7 28. Rxb2 Ne6 29. Qxd5 Qc3) 25. exf6 {[%emt 0:02:46]} (25. Kg2 $15)
25... Qxf6 {[%emt 0:00:09][%cal Yc4b2]} 26. Qd3 {[%emt 0:00:28]} Nd6 $1 {
[%emt 0:00:30]} 27. Rd1 {[%emt 0:09:36]} Nf5 {[%emt 0:00:39]} 28. Re5 {[%emt 0:
00:00][%cal Yc3d5]} g6 {[%emt 0:08:53]} 29. g4 {[%emt 0:07:05]} (29. Ree1 $142)
29... Nxh4 {[%emt 0:12:20]} 30. Rf1 {[%emt 0:02:11]} Nd7 {[%emt 0:06:27]} 31.
Re3 {[%emt 0:08:34]} Rc4 {[%emt 0:01:57]} 32. Ne2 {[%emt 0:00:47]} Nf8 {
[%emt 0:02:28]} (32... Rc2 $142 33. Nf2 Rxb2) 33. Rg3 {[%emt 0:02:26]} Qg7 {
[%emt 0:02:44]} 34. f5 {[%emt 0:03:28]} (34. Qe3 $142) 34... g5 $1 {[%emt 0:00:
00]} 35. Qe3 {[%emt 0:00:42]} (35. Nf2 $17 {was necessary.}) 35... Re8 $4 {
[%emt 0:02:23]} (35... R8c7 $19 {avoids the disaster. Hoping for ... R4c6.} 36.
fxe6 Re7) 36. f6 $18 {[%emt 0:04:46] White has strong compensation.} Qf7 {
[%emt 0:00:06] [#]} 37. Nc1 $4 {[%emt 0:00:58]} (37. Nxg5 $1 $18 hxg5 38. Qxg5+
Nhg6 39. Nf4) 37... Nhg6 {[%emt 0:00:00]} 38. Nd3 {[%emt 0:00:09]} Nd7 {
[%emt 0:00:27]} 39. b3 {[%emt 0:03:42]} Rcc8 {[%emt 0:00:25]} ({Better is} 
39... Rc3 $17 40. Nxg5 hxg5 41. Qxg5 Rec8) 40. Ne5 $2 {[%emt 0:01:39] [#]} (40.
Nxg5 $1 $11 {and White stays safe.} hxg5 41. Qxg5) 40... Ndxe5 $1 $19 {[%emt 0:
00:05]} 41. dxe5 {[%emt 0:30:09][%cal Yh3g5] Strongly threatening Nxg5!} Rc6 $4
{[%emt 0:30:51] [#]} (41... Rc2 $19 42. Qd4 Rec8) 42. Nxg5 $1 $18 {[%emt 0:00:
00] White is clearly winning.} hxg5 {[%emt 0:00:00]} (42... d4 43. Qe4) 43.
Qxg5 {[%emt 0:00:00] And now Rh3 would win.} Qa7+ {[%emt 0:00:00]} 44. Rf2 {
[%emt 0:00:00] Weighted Error Value: White=0.45/Black=0.56} 1-0